[Event "50th-ITA-ch-Teams-2018"]
[Site "Gallipoli"]
[Date "2018.04.28"]
[Round "3"]
[White "Colmenares, Aurelio"]
[Black "Lanzani, Mario"]
[Result "1/2-1/2"]
[ECO "D14"]
[WhiteElo "2385"]
[BlackElo "2281"]
[Annotator "NA"]
[PlyCount "44"]
[EventDate "2018.??.??"]
[EventType "team-tourn"]
[EventCountry "ITA"]
[SourceTitle "playchess.com"]
[Source "ChessBase"]
[SourceQuality "1"]
[TimeControl "40/5400+30:900+30"]

1. d4 {[%emt 0:00:02]} d5 {[%emt 0:00:18]} 2. Nf3 {[%emt 0:00:07]} c5 {[%emt 0:00:45]} 3. c3 {[%emt 0:02:59]} cxd4 {[%emt 0:01:17]} 4. cxd4 {[%emt 0:00:18]} Nc6 {[%emt 0:00:11]} 5. Nc3 {[%emt 0:00:34]} Nf6 {[%emt 0:00:11]} 6. Bf4 {[%emt 0:01:38]} Bf5 {[%emt 0:01:03]} 7. e3 {[%emt 0:02:16]} e6 {[%emt 0:00:25]} 8. Ne5 {[%emt 0:00:19]} Nd7 {[%emt 0:12:15]} 9. g4 {[%emt 0:06:07]} Bg6 {[%emt 0:01:01]} 10. Nxg6 {[%emt 0:02:30]} hxg6 {[%emt 0:00:17]} 11. Bd3 {[%emt 0:03:17]} a6 {[%emt 0:13:57]} 12. g5 {[%emt 0:05:47]} Nb6 {[%emt 0:06:09]} 13. Qg4 {[%emt 0:04:14]} Bd6 {[%emt 0:06:45]} 14. a3 {[%emt 0:12:15]} Bxf4 {[%emt 0:03:41]} 15. Qxf4 {[%emt 0:01:55]} Qb8 {[%emt 0:01:02]} 16. Ne2 {[%emt 0:13:29]} Qxf4 {[%emt 0:04:24]} 17. Nxf4 {[%emt 0:00:04]} Rh4 {[%emt 0:02:58]} 18. Rc1 {[%emt 0:00:47]} Kd7 {[%emt 0:03:33]} 19. Ng2 {[%emt 0:08:56]} Rh3 {[%emt 0:13:45]} 20. Nf4 {[%emt 0:06:07]} Rh4 {[%emt 0:00:15]} 21. Ng2 {[%emt 0:09:08]} Rh3 {[%emt 0:07:13]} 22. Nf4 {[%emt 0:00:20]} Rh4 {[%emt 0:00:12]} 1/2-1/2

[Event "50th-ITA-ch-Teams-2018"]
[Site "Gallipoli"]
[Date "2018.04.28"]
[Round "3"]
[White "Distaso, Antonio"]
[Black "Di Benedetto, Edoardo"]
[Result "1/2-1/2"]
[ECO "A14"]
[WhiteElo "2134"]
[BlackElo "2280"]
[Annotator "NA"]
[PlyCount "67"]
[EventDate "2018.??.??"]
[EventType "team-tourn"]
[EventCountry "ITA"]
[SourceTitle "playchess.com"]
[Source "ChessBase"]
[SourceQuality "1"]
[TimeControl "40/5400+30:900+30"]

1. c4 {[%emt 0:00:08]} e6 {[%emt 0:00:05]} 2. Nf3 {[%emt 0:00:09]} d5 {[%emt 0:00:05]} 3. b3 {[%emt 0:00:11]} Nf6 {[%emt 0:00:12]} 4. Bb2 {[%emt 0:00:08]} Be7 {[%emt 0:00:20]} 5. g3 {[%emt 0:00:12]} O-O {[%emt 0:00:25]} 6. Bg2 {[%emt 0:00:15]} c5 {[%emt 0:01:48]} 7. O-O {[%emt 0:01:06]} Nc6 {[%emt 0:00:26]} 8. cxd5 {[%emt 0:02:40]} Nxd5 {[%emt 0:00:54]} 9. Nc3 {[%emt 0:03:55]} Bf6 {[%emt 0:02:37]} 10. Qc1 {[%emt 0:06:27]} Nxc3 {[%emt 0:10:46]} 11. dxc3 {[%emt 0:02:09]} Qc7 {[%emt 0:00:26] A14: English Opening: 1...e6 with b3 by White} 12. Rd1 {[%emt 0:09:01]} (12. Nd2 Bd7 13. Ne4 Be7 14. Qe3 c4 15. Nc5 Rfd8 16. Nxd7 Qxd7 17. Rab1 Rac8 18. Qe4 cxb3 19. axb3 {½-½ (27) Dizdarevic,E (2539)-Kuljasevic,D (2554) Durres 2014}) 12... b6 {[%emt 0:00:46]} 13. c4 {[%emt 0:12:59]} Bxb2 {[%emt 0:00:41]} 14. Qxb2 {[%emt 0:00:05]} Bb7 {[%emt 0:00:26]} 15. Rd2 {[%emt 0:26:57]} Rad8 {[%emt 0:00:56]} 16. Rad1 {[%emt 0:00:57]} Rxd2 {[%emt 0:00:53]} 17. Rxd2 {[%emt 0:00:05]} Rd8 {[%emt 0:01:25]} 18. Rxd8+ {[%emt 0:04:37]} Qxd8 {[%emt 0:03:25]} 19. Qd2 {[%emt 0:00:43]} h6 $146 {[%emt 0:03:32]} ({Predecessor:} 19... Qxd2 20. Nxd2 {½-½ (33) Pikler,R-Havasi,K Budapest 1931}) 20. Qxd8+ {[%emt 0:03:40]} Nxd8 {[%emt 0:00:04]} 21. Ne5 {[%emt 0:02:58]} Bxg2 {[%emt 0:00:41]} 22. Kxg2 {[%emt 0:00:04]} f6 {[%emt 0:00:06]} 23. Nd3 {[%emt 0:00:17]} Nc6 {[%emt 0:00:05]} 24. e3 {[%emt 0:00:49]} Kf7 {[%emt 0:00:17]} 25. Kf3 {[%emt 0:00:38]} g6 {[%emt 0:00:23]} 26. Ke2 {[%emt 0:00:18]} e5 {[%emt 0:00:07]} 27. f3 {[%emt 0:10:29]} h5 {[%emt 0:05:06]} 28. Kd2 {[%emt 0:01:26]} f5 {[%emt 0:00:28]} 29. Nf2 {[%emt 0:00:16]} Kf6 {[%emt 0:01:18]} 30. Nd1 {[%emt 0:01:30]} e4 {[%emt 0:06:56]} 31. f4 {[%emt 0:02:06]} Nb4 {[%emt 0:05:52]} 32. Nc3 {[%emt 0:00:25]} Ke6 {[%emt 0:08:16]} 33. a3 {[%emt 0:01:35]} Nc6 {[%emt 0:02:13]} 34. Nd5 $11 {[%emt 0:00:43]} 1/2-1/2

[Event "50th-ITA-ch-Teams-2018"]
[Site "Gallipoli"]
[Date "2018.05.01"]
[Round "7"]
[White "Lapiccirella, Daniele"]
[Black "Pitzanti, Matteo"]
[Result "1/2-1/2"]
[ECO "D27"]
[WhiteElo "2213"]
[BlackElo "2213"]
[Annotator "NA"]
[PlyCount "51"]
[EventDate "2018.??.??"]
[EventType "team-tourn"]
[EventCountry "ITA"]
[SourceTitle "playchess.com"]
[Source "ChessBase"]
[SourceQuality "1"]
[TimeControl "40/5400+30:900+30"]

{[%evp 11,36,30,37,22,24,22,30,18,23,19,37,10,19,10,22,12,47,16,32767,32767,16,12,37,22,16,0,23]} 1. d4 {[%emt 0:51:01]} d5 {[%emt 0:08:39]} 2. c4 {[%emt 0:00:07]} dxc4 {[%emt 0:00:08]} 3. Nf3 {[%emt 0:00:06]} Nf6 {[%emt 0:00:07]} 4. e3 {[%emt 0:00:05]} e6 {[%emt 0:00:11]} 5. Bxc4 {[%emt 0:00:06]} a6 {[%emt 0:00:05]} 6. O-O {[%emt 0:00:21]} c5 {[%emt 0:00:06]} 7. b3 {[%emt 0:00:06]} b5 {[%emt 0:06:31]} 8. Be2 {[%emt 0:00:22]} Bb7 {[%emt 0:00:06]} 9. Bb2 {[%emt 0:02:35]} Nbd7 {[%emt 0:01:48]} 10. a4 {[%emt 0:01:54]} b4 {[%emt 0:00:06]} 11. Nbd2 {[%emt 0:00:10]} Be7 {[%emt 0:00:10]} 12. Nc4 {[%emt 0:02:00]} O-O {[%emt 0:00:59] LiveBook: 51 Games} 13. Rc1 {[%emt 0:05:33]} Qb8 {[%emt 0:08:04] D27: Queen's Gambit Accepted: Classical main line: 7 e4!? and 7 a4} (13... Bd5 14. Nfe5 cxd4 15. Nxd7 Nxd7 16. Bxd4 Rc8 17. Qd2 Nc5 18. Qb2 Bf6 19. Bxf6 Qxf6 20. Qxf6 gxf6 21. Nb6 {0-1 (50) Gelfand,B (2741)-Karjakin,S (2760) Moscow 2010}) 14. dxc5 $146 {[%emt 0:28:13]} ({Predecessor:} 14. Nfe5 Rd8 15. Bh5 Nxe5 16. Nxe5 g6 17. Bf3 Nd5 18. Bxd5 Rxd5 19. e4 Rd8 20. Qf3 f6 21. Ng4 {0-1 (44) Taimanov,M (2470)-Hjartarson,J (2565) Stockholm 1996}) 14... Nxc5 {[%emt 0:05:23]} 15. Be5 {[%emt 0:14:15]} Qa7 {[%emt 0:07:38]} 16. Qc2 {[%emt 0:03:01]} Rac8 {[%emt 0:15:25]} 17. Rfd1 {[%emt 0:04:35]} Nd5 {[%emt 0:07:33]} 18. Bd4 {[%emt 0:03:40]} Nc3 $11 {[%emt 0:11:02]} 19. Bxc3 {[%emt 0:02:34]} Be4 {[%emt 0:00:11]} 20. Qa2 {[%emt 0:00:29]} bxc3 {[%emt 0:00:07]} 21. Rxc3 {[%emt 0:00:34]} Qb8 {[%emt 0:07:27]} 22. Nce5 {[%emt 0:04:40]} Bd6 {[%emt 0:08:01]} 23. Nc4 {[%emt 0:10:07]} Be7 {[%emt 0:00:15]} 24. Nce5 {[%emt 0:01:14]} Bd6 {[%emt 0:00:21]} 25. Nc4 {[%emt 0:04:51]} Be7 {[%emt 0:00:06]} 26. Nce5 {[%emt 0:00:35]} 1/2-1/2